[Event "WYCC U18 Open 2019"]
[Site "Mumbai"]
[Date "2019.10.03"]
[Round "2.1"]
[White "Wang, Shixu B"]
[Black "Sargsyan, Shant"]
[Result "0-1"]
[ECO "E53"]
[WhiteElo "2370"]
[BlackElo "2580"]
[Annotator "ChessBase"]
[PlyCount "88"]
[EventDate "2019.10.02"]
[EventType "swiss"]
[EventCountry "IND"]
[SourceTitle "playchess.com"]
[Source "ChessBase"]
[SourceQuality "1"]
[TimeControl "40/5400+30:1800+30"]

1. d4 {[%emt 0:00:00]} Nf6 {[%emt 0:00:48]} 2. c4 {[%emt 0:00:00]} e6 {[%emt 0:00:05]} 3. Nf3 {[%emt 0:00:50]} d5 {[%emt 0:00:41]} 4. Nc3 {[%emt 0:00:20]} Bb4 {[%emt 0:00:51]} 5. e3 {[%emt 0:01:54]} O-O {[%emt 0:00:20]} 6. Bd3 {[%emt 0:01:26]} c5 {[%emt 0:00:43]} 7. O-O {[%emt 0:00:17]} b6 {[%emt 0:00:39]} 8. cxd5 {[%emt 0:02:28]} exd5 {[%emt 0:00:21]} 9. Ne5 {[%emt 0:01:17]} Bxc3 {[%emt 0:01:28]} 10. bxc3 {[%emt 0:00:08]} Ba6 {[%emt 0:00:04]} 11. dxc5 {[%emt 0:23:06]} Qc7 {[%emt 0:03:01]} 12. Nf3 {[%emt 0:10:50]} Qxc5 {[%emt 0:01:43]} 13. a4 {[%emt 0:02:50]} Qxc3 {[%emt 0:01:48]} 14. Ra3 {[%emt 0:00:51]} Qb4 {[%emt 0:01:42]} 15. Nd4 {[%emt 0:06:08]} Bc4 {[%emt 0:05:10]} 16. Ra1 {[%emt 0:11:02]} Bxd3 {[%emt 0:15:33]} 17. Qxd3 {[%emt 0:00:02]} Re8 {[%emt 0:06:15]} 18. Ba3 {[%emt 0:05:33]} Qxa4 {[%emt 0:04:32]} 19. Nb5 {[%emt 0:12:41]} Qc4 {[%emt 0:03:30]} 20. Qxc4 {[%emt 0:00:15]} dxc4 {[%emt 0:00:01]} 21. Nc7 {[%emt 0:01:21]} Nbd7 {[%emt 0:00:10]} 22. Rfd1 {[%emt 0:04:43]} Rec8 {[%emt 0:14:39]} 23. Nxa8 {[%emt 0:00:14]} Rxa8 {[%emt 0:00:01]} 24. Be7 {[%emt 0:02:23]} h5 {[%emt 0:04:22]} 25. Ra6 {[%emt 0:02:52]} Ne5 {[%emt 0:04:34]} 26. Bxf6 {[%emt 0:06:02]} gxf6 {[%emt 0:00:12]} 27. Rda1 {[%emt 0:03:04]} b5 {[%emt 0:03:17]} 28. Kf1 {[%emt 0:00:44]} c3 {[%emt 0:02:25]} 29. Ke2 {[%emt 0:00:32]} b4 {[%emt 0:00:44]} 30. f4 {[%emt 0:00:16]} Nc4 {[%emt 0:01:27]} 31. Kd3 {[%emt 0:00:45]} Nb2+ {[%emt 0:10:07]} 32. Kc2 {[%emt 0:00:06]} Re8 {[%emt 0:01:57]} 33. Re1 {[%emt 0:00:58]} Re7 34. e4 {[%emt 0:00:29]} Rd7 {[%emt 0:04:49]} 35. Re2 {[%emt 0:00:26]} Rb7 {[%emt 0:03:23]} 36. Re1 {[%emt 0:00:32]} Rd7 {[%emt 0:02:50]} 37. Re2 {[%emt 0:00:03]} Nd3 {[%emt 0:00:42]} 38. g3 {[%emt 0:01:00]} Nc5 {[%emt 0:00:36]} 39. Rc6 {[%emt 0:00:31]} Ne6 {[%emt 0:00:07]} 40. Rc8+ {[%emt 0:00:14]} Kg7 {[%emt 0:00:00]} 41. Rf2 {[%emt 0:30:40]} Nd4+ {[%emt 0:30:33]} 42. Kd3 {[%emt 0:00:32]} a5 {[%emt 0:00:41]} 43. Ra8 {[%emt 0:00:00]} Ne2+ {[%emt 0:00:00]} 44. Kxe2 {[%emt 0:00:00]} Rd2+ {[%emt 0:00:00]} 0-1

[Event "WYCC U18 Open 2019"]
[Site "Mumbai"]
[Date "2019.10.03"]
[Round "2.2"]
[White "Praggnanandhaa, R."]
[Black "Kozak, Antoni"]
[Result "1-0"]
[ECO "A05"]
[WhiteElo "2567"]
[BlackElo "2354"]
[Annotator "ChessBase"]
[PlyCount "80"]
[EventDate "2019.10.02"]
[EventType "swiss"]
[EventCountry "IND"]
[SourceTitle "playchess.com"]
[Source "ChessBase"]
[SourceQuality "1"]
[TimeControl "40/5400+30:1800+30"]

1. Nf3 {[%emt 0:00:00]} Nf6 {[%emt 0:00:20]} 2. g3 {[%emt 0:00:00]} c5 3. Bg2 Nc6 4. O-O e5 5. e4 Be7 6. d3 O-O 7. Nc3 d6 8. Nd5 Nxd5 9. exd5 Nd4 10. Nd2 Bg5 11. a4 b6 12. f4 exf4 13. Ne4 h6 14. Bxf4 Bxf4 15. Rxf4 Nf5 16. Qd2 Ne7 17. Rf6 Nf5 18. g4 gxf6 19. gxf5 Kg7 20. Ng3 Kh7 21. Kh1 Rg8 22. Qf2 Rb8 23. Re1 Rxg3 24. hxg3 Rb7 25. Re4 Re7 26. Rg4 Re5 27. Be4 Bb7 28. c4 Bc8 29. Qf4 Qf8 30. Kg2 Bd7 31. b3 Qh8 32. Rh4 Kg7 33. Rh3 Kf8 34. Rxh6 Qg7 35. Rh5 Ke7 36. Qh4 Be8 37. Kf3 Bd7 38. Kf4 a6 39. Rh7 Qg8 40. Rh8 Qg7 1-0

[Event "WYCC U18 Open 2019"]
[Site "Mumbai"]
[Date "2019.10.03"]
[Round "2.3"]
[White "Stoleriu, George"]
[Black "Gholami, Aryan"]
[Result "0-1"]
[ECO "B10"]
[WhiteElo "2351"]
[BlackElo "2554"]
[Annotator "ChessBase"]
[PlyCount "130"]
[EventDate "2019.10.02"]
[EventType "swiss"]
[EventCountry "IND"]
[SourceTitle "playchess.com"]
[Source "ChessBase"]
[SourceQuality "1"]
[TimeControl "40/5400+30:1800+30"]

1. e4 {[%emt 0:00:00]} c6 {[%emt 0:00:00]} 2. Nf3 {[%emt 0:02:32]} d5 {[%emt 0:00:00]} 3. exd5 {[%emt 0:00:20]} cxd5 {[%emt 0:00:00]} 4. Ne5 {[%emt 0:00:07]} Nf6 {[%emt 0:00:00]} 5. d4 {[%emt 0:00:05]} g6 {[%emt 0:00:02]} 6. Bb5+ {[%emt 0:01:40]} Nbd7 {[%emt 0:00:15]} 7. O-O {[%emt 0:03:23]} Bg7 {[%emt 0:00:19]} 8. Re1 {[%emt 0:05:37]} O-O {[%emt 0:00:33]} 9. Nxd7 {[%emt 0:04:48]} Bxd7 {[%emt 0:00:36]} 10. Bd3 {[%emt 0:05:25]} Bg4 {[%emt 0:03:48]} 11. f3 {[%emt 0:02:59]} Bd7 {[%emt 0:00:43]} 12. c3 {[%emt 0:00:29]} b5 {[%emt 0:00:56]} 13. Nd2 {[%emt 0:05:55]} b4 {[%emt 0:01:39]} 14. cxb4 {[%emt 0:03:49]} Qb6 {[%emt 0:00:21]} 15. Nb3 {[%emt 0:00:13]} Qxb4 {[%emt 0:00:44]} 16. Bd2 {[%emt 0:00:34]} Qd6 {[%emt 0:01:12]} 17. a3 {[%emt 0:05:54]} Ba4 {[%emt 0:02:36]} 18. Bb4 {[%emt 0:10:09]} Qb6 {[%emt 0:01:21]} 19. Bc2 {[%emt 0:01:27]} Rfb8 {[%emt 0:03:18]} 20. Nc5 {[%emt 0:03:13]} Bxc2 {[%emt 0:00:23]} 21. Qxc2 {[%emt 0:00:04]} e6 {[%emt 0:00:20]} 22. Kh1 {[%emt 0:00:25]} Qc6 {[%emt 0:03:08]} 23. Rec1 {[%emt 0:03:38]} a5 {[%emt 0:00:16]} 24. Bc3 {[%emt 0:00:13]} Ne8 {[%emt 0:00:34]} 25. a4 {[%emt 0:03:38]} Nd6 {[%emt 0:01:26]} 26. Ra3 {[%emt 0:06:48]} Nc4 {[%emt 0:10:52]} 27. Rb3 {[%emt 0:00:51]} Rxb3 {[%emt 0:00:07]} 28. Qxb3 {[%emt 0:01:12]} e5 {[%emt 0:00:07]} 29. Qd1 {[%emt 0:02:49]} exd4 {[%emt 0:02:13]} 30. Bxd4 {[%emt 0:03:16]} Nxb2 {[%emt 0:00:11]} 31. Qg1 {[%emt 0:03:38]} Nc4 {[%emt 0:00:31]} 32. Bxg7 {[%emt 0:00:18]} Kxg7 {[%emt 0:00:05]} 33. Qd4+ {[%emt 0:00:04]} f6 {[%emt 0:05:35]} 34. Rb1 {[%emt 0:02:56]} Rc8 {[%emt 0:02:50]} 35. Rb7+ {[%emt 0:01:07]} Kg8 {[%emt 0:00:08]} 36. h3 {[%emt 0:16:50]} Nd6 {[%emt 0:09:29]} 37. Rd7 {[%emt 0:00:20]} Nf5 {[%emt 0:00:02]} 38. Qxd5+ {[%emt 0:00:40]} Qxd5 {[%emt 0:00:04]} 39. Rxd5 {[%emt 0:00:05]} Ne3 {[%emt 0:00:03]} 40. Rd3 {[%emt 0:00:18]} Nxg2 {[%emt 0:00:05]} 41. Ne4 {[%emt 0:11:07]} Nf4 {[%emt 0:00:10]} 42. Rd7 {[%emt 0:00:16]} Rc6 {[%emt 0:01:38]} 43. h4 {[%emt 0:02:46]} f5 {[%emt 0:07:16]} 44. Ng5 {[%emt 0:03:07]} Rc4 {[%emt 0:01:23]} 45. Kh2 {[%emt 0:09:10]} Nh5 {[%emt 0:02:00]} 46. Kh3 {[%emt 0:00:42]} h6 {[%emt 0:00:10]} 47. Nf7 {[%emt 0:01:46]} Rf4 {[%emt 0:02:24]} 48. Nxh6+ {[%emt 0:04:09]} Kf8 {[%emt 0:00:04]} 49. Kg2 {[%emt 0:00:08]} Rxh4 {[%emt 0:00:25]} 50. Nf7 {[%emt 0:00:35]} Rxa4 {[%emt 0:01:14]} 51. Ne5 {[%emt 0:00:13]} Ra2+ {[%emt 0:01:53]} 52. Kh3 {[%emt 0:03:12]} Nf4+ {[%emt 0:00:09]} 53. Kh4 {[%emt 0:00:02]} Rg2 {[%emt 0:00:59]} 54. Nf7 {[%emt 0:00:02]} Kg7 {[%emt 0:11:51]} 55. Ng5+ {[%emt 0:00:39]} Kf6 {[%emt 0:00:04]} 56. Rd6+ {[%emt 0:01:27]} Ke7 {[%emt 0:00:05]} 57. Ra6 {[%emt 0:00:25]} Ne2 {[%emt 0:01:39]} 58. Ne6 {[%emt 0:00:51]} a4 {[%emt 0:00:25]} 59. Kh3 {[%emt 0:00:29]} Rg3+ {[%emt 0:00:08]} 60. Kh4 {[%emt 0:00:26]} Rxf3 {[%emt 0:01:06]} 61. Kg5 {[%emt 0:00:23]} Rg3+ {[%emt 0:00:17]} 62. Kh6 {[%emt 0:00:08]} a3 {[%emt 0:01:01]} 63. Ng5 {[%emt 0:00:30]} Nf4 {[%emt 0:00:14]} 64. Ra4 {[%emt 0:00:33]} Ne6 {[%emt 0:01:10]} 65. Ra7+ {[%emt 0:00:04]} Kf6 {[%emt 0:00:11]} 0-1

[Event "WYCC U18 Open 2019"]
[Site "Mumbai"]
[Date "2019.10.03"]
[Round "2.4"]
[White "Aliyev, Ravan"]
[Black "Iniyan, P."]
[Result "0-1"]
[ECO "E32"]
[WhiteElo "2341"]
[BlackElo "2509"]
[Annotator "ChessBase"]
[PlyCount "79"]
[EventDate "2019.10.02"]
[EventType "swiss"]
[EventCountry "IND"]
[SourceTitle "playchess.com"]
[Source "ChessBase"]
[SourceQuality "1"]
[TimeControl "40/5400+30:1800+30"]

1. d4 {[%emt 0:00:00]} Nf6 {[%emt 0:00:00]} 2. c4 {[%emt 0:00:11]} e6 {[%emt 0:00:00]} 3. Nc3 {[%emt 0:02:28]} Bb4 {[%emt 0:00:14]} 4. Qc2 {[%emt 0:00:07]} O-O {[%emt 0:01:38]} 5. a3 {[%emt 0:01:52]} Bxc3+ {[%emt 0:00:11]} 6. Qxc3 {[%emt 0:00:02]} b6 {[%emt 0:00:13]} 7. Bg5 {[%emt 0:00:17]} Bb7 {[%emt 0:00:10]} 8. Nf3 {[%emt 0:06:33]} d6 {[%emt 0:00:13]} 9. Nd2 {[%emt 0:00:07]} h6 {[%emt 0:03:36]} 10. Bh4 {[%emt 0:00:47]} Nbd7 {[%emt 0:00:29]} 11. f3 {[%emt 0:06:17]} c5 {[%emt 0:10:44]} 12. e4 Rc8 {[%emt 0:02:09]} 13. Bd3 {[%emt 0:22:35]} d5 {[%emt 0:13:56]} 14. exd5 {[%emt 0:06:30]} exd5 {[%emt 0:18:19]} 15. O-O {[%emt 0:00:36]} Qc7 {[%emt 0:00:54]} 16. Bg3 {[%emt 0:12:50]} Qc6 {[%emt 0:07:30]} 17. Rac1 {[%emt 0:05:38]} Rfd8 {[%emt 0:03:28]} 18. Bf5 {[%emt 0:04:30]} g6 {[%emt 0:08:48]} 19. Bh3 {[%emt 0:12:13]} Nh5 {[%emt 0:02:11]} 20. Rfd1 {[%emt 0:06:07]} f5 {[%emt 0:03:10]} 21. Qe3 {[%emt 0:02:32]} Qf6 {[%emt 0:01:01]} 22. dxc5 {[%emt 0:05:26]} Kh7 {[%emt 0:02:26]} 23. cxd5 {[%emt 0:02:39]} Nxg3 {[%emt 0:06:13]} 24. hxg3 {[%emt 0:00:36]} Nxc5 {[%emt 0:04:25]} 25. b4 {[%emt 0:00:49]} Na4 {[%emt 0:00:08]} 26. Rxc8 {[%emt 0:00:24]} Rxc8 {[%emt 0:00:06]} 27. Re1 {[%emt 0:00:35]} Bxd5 {[%emt 0:01:17]} 28. g4 {[%emt 0:00:39]} f4 {[%emt 0:00:57]} 29. Qe7+ {[%emt 0:00:30]} Qxe7 {[%emt 0:05:47]} 30. Rxe7+ {[%emt 0:00:01]} Kg8 {[%emt 0:00:01]} 31. g5 {[%emt 0:00:02]} Rc2 {[%emt 0:01:04]} 32. Ne4 {[%emt 0:01:24]} Bxe4 {[%emt 0:00:35]} 33. fxe4 {[%emt 0:00:18]} hxg5 {[%emt 0:00:07]} 34. Rxa7 {[%emt 0:00:39]} Nc3 {[%emt 0:00:08]} 35. Rg7+ Kxg7 {[%emt 0:03:15]} 36. e5 {[%emt 0:00:46]} Ne2+ {[%emt 0:00:10]} 37. Kf2 {[%emt 0:00:47]} Ng3+ {[%emt 0:00:10]} 38. Ke1 {[%emt 0:00:42]} Re2+ {[%emt 0:00:03]} 39. Kd1 {[%emt 0:00:00]} Rxe5 {[%emt 0:00:08]} 40. Bd7 {[%emt 0:00:00]} 0-1

[Event "WYCC U18 Open 2019"]
[Site "Mumbai"]
[Date "2019.10.03"]
[Round "2.5"]
[White "Gumularz, Szymon"]
[Black "Chylewski, Patryk"]
[Result "1/2-1/2"]
[ECO "A05"]
[WhiteElo "2505"]
[BlackElo "2348"]
[Annotator "ChessBase"]
[PlyCount "63"]
[EventDate "2019.10.02"]
[EventType "swiss"]
[EventCountry "IND"]
[SourceTitle "playchess.com"]
[Source "ChessBase"]
[SourceQuality "1"]
[TimeControl "40/5400+30:1800+30"]

1. Nf3 {[%emt 0:00:00]} Nf6 {[%emt 0:00:21]} 2. g3 {[%emt 0:00:00]} d5 {[%emt 0:00:05]} 3. Bg2 {[%emt 0:00:00]} c6 {[%emt 0:00:05]} 4. c4 {[%emt 0:07:07]} Bf5 {[%emt 0:00:24]} 5. b3 {[%emt 0:04:05]} e6 {[%emt 0:00:38]} 6. Bb2 {[%emt 0:00:07]} Nbd7 {[%emt 0:01:16]} 7. O-O {[%emt 0:00:08]} Be7 {[%emt 0:01:09]} 8. d3 {[%emt 0:00:16]} h6 {[%emt 0:00:55]} 9. Nbd2 {[%emt 0:00:04]} O-O {[%emt 0:00:33]} 10. Rc1 {[%emt 0:03:27]} a5 {[%emt 0:05:49]} 11. a3 {[%emt 0:00:58]} Bh7 {[%emt 0:00:44]} 12. Rc2 {[%emt 0:04:21]} Ne8 {[%emt 0:03:08]} 13. Qa1 {[%emt 0:10:55]} Bf6 {[%emt 0:01:31]} 14. Rfc1 {[%emt 0:00:50]} Bxb2 {[%emt 0:06:41]} 15. Qxb2 {[%emt 0:01:34]} Qf6 {[%emt 0:01:14]} 16. b4 {[%emt 0:07:39]} Qxb2 {[%emt 0:04:43]} 17. Rxb2 {[%emt 0:00:23]} axb4 {[%emt 0:00:12]} 18. axb4 {[%emt 0:00:12]} Nd6 {[%emt 0:01:41]} 19. Nd4 {[%emt 0:07:59]} Ra4 {[%emt 0:10:48]} 20. cxd5 {[%emt 0:07:44]} cxd5 {[%emt 0:04:52]} 21. Rc7 {[%emt 0:01:45]} Nb6 {[%emt 0:07:24]} 22. f4 {[%emt 0:04:04]} Rc8 {[%emt 0:03:44]} 23. Rxc8+ {[%emt 0:01:26]} Nbxc8 {[%emt 0:00:34]} 24. Kf2 {[%emt 0:01:18]} Nb6 {[%emt 0:03:38]} 25. Nb1 {[%emt 0:06:50]} Kf8 {[%emt 0:05:44]} 26. Nc3 {[%emt 0:02:28]} Ra8 {[%emt 0:00:23]} 27. Ncb5 {[%emt 0:06:07]} Ke7 {[%emt 0:05:42]} 28. Nxd6 {[%emt 0:01:56]} Kxd6 {[%emt 0:02:06]} 29. Ke3 {[%emt 0:00:12]} Bg6 {[%emt 0:09:09]} 30. Bf3 {[%emt 0:01:43]} Kd7 {[%emt 0:05:48]} 31. Nb3 {[%emt 0:07:50]} Ra3 {[%emt 0:02:26]} 32. Nc5+ {[%emt 0:05:25]} 1/2-1/2

[Event "WYCC U18 Open 2019"]
[Site "Mumbai"]
[Date "2019.10.03"]
[Round "2.6"]
[White "Om, Kharola"]
[Black "Pultinevicius, Paulius"]
[Result "1/2-1/2"]
[ECO "C47"]
[WhiteElo "2328"]
[BlackElo "2503"]
[Annotator "ChessBase"]
[PlyCount "116"]
[EventDate "2019.10.02"]
[EventType "swiss"]
[EventCountry "IND"]
[SourceTitle "playchess.com"]
[Source "ChessBase"]
[SourceQuality "1"]
[TimeControl "40/5400+30:1800+30"]

1. e4 {[%emt 0:00:00]} e5 {[%emt 0:01:06]} 2. Nf3 {[%emt 0:00:00]} Nc6 {[%emt 0:00:06]} 3. Nc3 {[%emt 0:00:02]} Nf6 {[%emt 0:03:39]} 4. a3 {[%emt 0:00:49]} g6 {[%emt 0:01:12]} 5. Bc4 {[%emt 0:00:16]} Bg7 {[%emt 0:02:09]} 6. d3 {[%emt 0:00:15]} h6 {[%emt 0:04:32]} 7. h3 {[%emt 0:00:46]} d6 {[%emt 0:00:27]} 8. Be3 {[%emt 0:00:25]} Nd7 {[%emt 0:03:52]} 9. d4 {[%emt 0:10:32]} exd4 {[%emt 0:10:10]} 10. Nxd4 {[%emt 0:00:26]} O-O {[%emt 0:01:02]} 11. O-O {[%emt 0:04:07]} Re8 {[%emt 0:03:28]} 12. Qd2 {[%emt 0:03:53]} Nb6 {[%emt 0:07:50]} 13. Bb5 {[%emt 0:01:35]} Bd7 {[%emt 0:01:13]} 14. Bxc6 {[%emt 0:02:13]} bxc6 {[%emt 0:04:38]} 15. Bxh6 {[%emt 0:01:05]} Nc4 {[%emt 0:01:15]} 16. Qe2 {[%emt 0:00:02]} Nxb2 {[%emt 0:03:06]} 17. Bxg7 {[%emt 0:01:16]} Kxg7 {[%emt 0:00:07]} 18. Rab1 {[%emt 0:02:29]} Qf6 {[%emt 0:04:18]} 19. Rxb2 {[%emt 0:00:12]} Qxd4 {[%emt 0:00:06]} 20. Qd3 {[%emt 0:00:07]} Qe5 {[%emt 0:08:15]} 21. Rb7 {[%emt 0:00:36]} Rec8 {[%emt 0:03:01]} 22. f4 {[%emt 0:02:33]} Qc5+ {[%emt 0:01:08]} 23. Kh1 {[%emt 0:01:40]} Rab8 {[%emt 0:03:21]} 24. Na4 {[%emt 0:09:34]} Qa5 {[%emt 0:02:39]} 25. Qd4+ {[%emt 0:01:32]} Kg8 {[%emt 0:00:07]} 26. Rxa7 {[%emt 0:02:28]} c5 {[%emt 0:01:55]} 27. Rxa5 {[%emt 0:07:26]} cxd4 {[%emt 0:00:05]} 28. Rd1 {[%emt 0:00:10]} c5 {[%emt 0:03:58]} 29. e5 {[%emt 0:07:05]} Bf5 {[%emt 0:02:54]} 30. Rd2 {[%emt 0:01:39]} dxe5 {[%emt 0:01:18]} 31. fxe5 {[%emt 0:00:42]} c4 {[%emt 0:02:24]} 32. Rxd4 {[%emt 0:00:47]} c3 {[%emt 0:00:50]} 33. Rb4 {[%emt 0:06:46]} Rxb4 {[%emt 0:05:51]} 34. axb4 {[%emt 0:02:19]} Bxc2 {[%emt 0:00:07]} 35. Rc5 {[%emt 0:03:02]} Rxc5 {[%emt 0:00:27]} 36. Nxc5 {[%emt 0:00:05]} Be4 {[%emt 0:03:40]} 37. Kg1 {[%emt 0:07:28]} Kf8 {[%emt 0:00:49]} 38. Kf2 {[%emt 0:01:29]} c2 {[%emt 0:00:03]} 39. Nb3 {[%emt 0:00:07]} Ke7 {[%emt 0:00:19]} 40. g3 {[%emt 0:01:09]} Bd5 {[%emt 0:02:51]} 41. Nc1 {[%emt 0:31:24]} Ke6 {[%emt 0:30:23]} 42. Ke3 {[%emt 0:00:08]} Bg2 {[%emt 0:04:40]} 43. Nd3 {[%emt 0:08:56]} Bf1 {[%emt 0:02:39]} 44. Nc5+ {[%emt 0:01:56]} Kxe5 {[%emt 0:00:00]} 45. Kd2 {[%emt 0:00:06]} Bxh3 {[%emt 0:00:00]} 46. Kxc2 {[%emt 0:00:00]} Kf5 {[%emt 0:00:00]} 47. Nd3 {[%emt 0:00:00]} Bf1 {[%emt 0:00:00]} 48. b5 {[%emt 0:00:00]} Ke4 {[%emt 0:00:00]} 49. Nc5+ {[%emt 0:00:00]} Ke3 {[%emt 0:00:00]} 50. b6 {[%emt 0:00:00]} Bg2 {[%emt 0:00:00]} 51. Nd7 {[%emt 0:00:00]} f5 {[%emt 0:04:04]} 52. Ne5 {[%emt 0:00:00]} g5 {[%emt 0:01:32]} 53. Nf7 {[%emt 0:00:00]} Be4+ {[%emt 0:00:47]} 54. Kc3 {[%emt 0:00:00]} f4 {[%emt 0:00:50]} 55. gxf4 {[%emt 0:00:00]} gxf4 {[%emt 0:01:09]} 56. Ng5 {[%emt 0:00:00]} Bb7 {[%emt 0:00:51]} 57. Kc4 {[%emt 0:00:00]} f3 {[%emt 0:00:09]} 58. Nxf3 {[%emt 0:00:00]} Kxf3 {[%emt 0:00:04]} 1/2-1/2

[Event "WYCC U18 Open 2019"]
[Site "Mumbai"]
[Date "2019.10.03"]
[Round "2.7"]
[White "Arjun, Kalyan"]
[Black "Krishnater, Kushager"]
[Result "1/2-1/2"]
[ECO "B56"]
[WhiteElo "2483"]
[BlackElo "2333"]
[Annotator "ChessBase"]
[PlyCount "62"]
[EventDate "2019.10.02"]
[EventType "swiss"]
[EventCountry "IND"]
[SourceTitle "playchess.com"]
[Source "ChessBase"]
[SourceQuality "1"]
[TimeControl "40/5400+30:1800+30"]

1. e4 c5 2. Nf3 Nc6 3. d4 cxd4 4. Nxd4 Nf6 5. Nc3 d6 6. f3 e5 7. Nb3 Be7 8. Be3 O-O 9. Qd2 Be6 10. Nd5 a5 11. Bb6 Qd7 12. Nxa5 Bxd5 13. exd5 Nxa5 14. Bxa5 e4 15. Bc4 Rfc8 16. Bb3 e3 17. Qb4 Rc5 18. Bb6 Nxd5 19. Bxd5 Rxd5 20. Bxe3 Rb5 21. Qd2 Rxb2 22. O-O Qc6 23. Rf2 Bf6 24. Rd1 Raxa2 25. Qxd6 Qxd6 26. Rxd6 Rxc2 27. g4 Rxf2 28. Bxf2 Kf8 29. h4 Ke8 30. Rd5 Bc3 31. Be3 g6 1/2-1/2

[Event "WYCC U18 Open 2019"]
[Site "Mumbai"]
[Date "2019.10.03"]
[Round "2.8"]
[White "Vanczak, Tamas"]
[Black "Rahul, Srivatshav P"]
[Result "1/2-1/2"]
[ECO "A45"]
[WhiteElo "2327"]
[BlackElo "2460"]
[Annotator "ChessBase"]
[PlyCount "62"]
[EventDate "2019.10.02"]
[EventType "swiss"]
[EventCountry "IND"]
[SourceTitle "playchess.com"]
[Source "ChessBase"]
[SourceQuality "1"]
[TimeControl "40/5400+30:1800+30"]

1. d4 {[%emt 0:00:00]} Nf6 {[%emt 0:00:37]} 2. Bg5 {[%emt 0:00:00]} g6 {[%emt 0:00:06]} 3. Bxf6 {[%emt 0:00:15]} exf6 {[%emt 0:00:05]} 4. c4 {[%emt 0:00:15]} f5 {[%emt 0:13:57]} 5. g3 {[%emt 0:01:46]} c5 {[%emt 0:03:07]} 6. Nc3 {[%emt 0:11:01]} Bg7 {[%emt 0:04:15]} 7. dxc5 {[%emt 0:04:50]} Na6 {[%emt 0:00:49]} 8. Qd6 {[%emt 0:06:25]} Qa5 {[%emt 0:01:38]} 9. Rc1 {[%emt 0:03:12]} Nxc5 {[%emt 0:05:45]} 10. Bg2 {[%emt 0:02:26]} Qb4 {[%emt 0:10:13]} 11. Rc2 {[%emt 0:01:45]} a5 {[%emt 0:10:33]} 12. a3 {[%emt 0:09:49]} Ne4 {[%emt 0:00:05]} 13. axb4 {[%emt 0:03:37]} Bxc3+ {[%emt 0:00:25]} 14. Rxc3 {[%emt 0:00:29]} Nxd6 {[%emt 0:00:04]} 15. b5 {[%emt 0:02:32]} Ne4 {[%emt 0:09:49]} 16. Re3 {[%emt 0:04:05]} O-O {[%emt 0:00:34]} 17. Bxe4 {[%emt 0:00:36]} fxe4 {[%emt 0:00:04]} 18. Rxe4 {[%emt 0:00:11]} d5 {[%emt 0:01:31]} 19. cxd5 {[%emt 0:01:19]} Bf5 {[%emt 0:00:04]} 20. Re7 {[%emt 0:04:11]} Rfe8 {[%emt 0:03:18]} 21. Rxe8+ {[%emt 0:02:50]} Rxe8 {[%emt 0:00:17]} 22. f3 {[%emt 0:03:46]} Bd3 {[%emt 0:03:46]} 23. b6 {[%emt 0:03:42]} Bc4 {[%emt 0:03:11]} 24. Kf2 {[%emt 0:02:09]} Bxd5 {[%emt 0:03:53]} 25. Nh3 {[%emt 0:00:51]} Re5 {[%emt 0:03:51]} 26. Nf4 {[%emt 0:08:43]} Bc6 {[%emt 0:00:12]} 27. Nd3 {[%emt 0:00:43]} Rb5 {[%emt 0:00:40]} 28. Ra1 {[%emt 0:00:13]} Bd5 {[%emt 0:01:52]} 29. Rc1 {[%emt 0:05:31]} Rxb6 {[%emt 0:03:32]} 30. Rc5 {[%emt 0:00:10]} Be6 {[%emt 0:00:05]} 31. Rxa5 {[%emt 0:00:12]} Bc4 {[%emt 0:00:03]} 1/2-1/2